bitfinex-derivatives/quotes_BTCF0:USTF0_20250119
["timestamp","ask_amount","ask_price","bid_price","bid_amount"]
[1737317200057,0.047074,106330.0,106320.0,0.89455997]
[1737317200262,0.047074,106330.0,106320.0,0.4826596]
[1737317200459,0.047074,106330.0,106320.0,0.89455997]
[1737317201257,0.047074,106330.0,106320.0,0.8434596]
[1737317201763,0.047074,106330.0,106320.0,0.89455997]
[1737317202556,0.04707,106340.0,106330.0,0.047071]
[1737317202761,0.04707,106340.0,106330.0,0.05001433]
[1737317202956,0.04707,106340.0,106330.0,0.46191472]
[1737317203258,0.04707,106340.0,106330.0,0.4255321]
[1737317205060,0.04707,106340.0,106330.0,0.43024136]
[1737317205256,0.04707,106340.0,106330.0,0.0647321]
[1737317205456,0.04707,106340.0,106330.0,0.06944148]
[1737317206061,0.04707,106340.0,106330.0,0.06944139]
[1737317206457,0.45897037,106340.0,106330.0,0.032129]
[1737317206651,0.45897037,106340.0,106330.0,0.02741968]
[1737317206856,0.04707,106340.0,106330.0,0.02741968]
[1737317207363,0.04707,106340.0,106330.0,0.07920124]
[1737317208063,0.04707,106340.0,106330.0,0.07920128]
[1737317208458,0.04707,106340.0,106330.0,0.49110165]
[1737317208759,0.04707,106340.0,106330.0,0.13030165]
[1737317208966,0.09817037,106340.0,106330.0,0.07920128]
[1737317209261,0.45897037,106340.0,106330.0,0.02237067]
[1737317209468,0.64927037,106340.0,106330.0,0.01766118]
[1737317209663,0.047077,106320.0,106310.0,0.42238109]
[1737317209860,0.047077,106320.0,106310.0,0.53116041]
[1737317210061,0.047077,106320.0,106310.0,0.53116039]
[1737317210558,0.407877,106320.0,106310.0,0.53116039]
[1737317210762,0.047077,106320.0,106310.0,0.89196039]
[1737317211668,0.047077,106320.0,106310.0,0.62097893]
[1737317211863,0.047077,106320.0,106310.0,0.62097875]
[1737317212666,0.047077,106320.0,106310.0,0.84085984]
[1737317213261,0.047077,106320.0,106310.0,0.86441046]
[1737317213761,0.407877,106320.0,106310.0,0.50507711]
[1737317214069,0.407877,106320.0,106310.0,0.51567531]
[1737317214363,0.047077,106320.0,106310.0,0.51567531]
[1737317214575,0.047077,106320.0,106310.0,0.89650421]
[1737317215670,0.047077,106320.0,106310.0,0.89650382]
[1737317215863,0.047077,106320.0,106310.0,0.8969977]
[1737317216065,0.047077,106320.0,106310.0,1.34124045]
[1737317216364,0.047077,106320.0,106310.0,1.34173433]
[1737317217466,0.45897237,106330.0,106310.0,1.34173433]
[1737317217670,0.45897237,106330.0,106310.0,1.31272302]
[1737317217865,0.45897737,106320.0,106310.0,1.26564202]
[1737317218063,0.45897737,106320.0,106310.0,0.74842982]
[1737317218263,0.45897737,106320.0,106310.0,0.74843088]
[1737317218463,0.45897737,106320.0,106310.0,0.72488026]
[1737317218868,0.51007774,106320.0,106310.0,0.72488026]
[1737317219073,0.45897737,106320.0,106310.0,0.72488026]
[1737317219567,0.45897737,106320.0,106310.0,0.61205672]
[1737317219774,0.51007774,106320.0,106310.0,0.61205672]
[1737317221375,0.45897737,106320.0,106310.0,0.61205695]
[1737317221671,0.45897737,106320.0,106310.0,0.6150012]
[1737317223780,0.51007774,106320.0,106310.0,0.6150012]
[1737317224067,0.51007774,106320.0,106310.0,0.60911281]
[1737317224866,0.04709,106290.0,106280.0,0.89489025]
[1737317225067,0.45899037,106290.0,106280.0,1.10073601]
[1737317225272,0.51009074,106290.0,106280.0,0.64516923]
[1737317225476,0.51009074,106290.0,106280.0,0.05854869]
[1737317225670,0.51009074,106290.0,106280.0,0.0526585]
[1737317225874,0.047094,106280.0,106270.0,0.38676312]
[1737317226176,0.047099,106270.0,106260.0,0.42797603]
[1737317226477,0.45899937,106270.0,106260.0,0.42797603]
[1737317226979,0.45899937,106270.0,106260.0,0.22096379]
[1737317227290,0.45909752,106270.0,106260.0,0.22096379]
[1737317228375,0.51019789,106270.0,106260.0,0.22096379]
[1737317228575,0.047108,106250.0,106240.0,0.19607566]
[1737317228779,0.09820837,106250.0,106240.0,0.19607566]
[1737317228984,0.047108,106250.0,106240.0,0.19607566]
[1737317229169,0.047105,106260.0,106240.0,0.60797603]
[1737317229369,0.09820537,106260.0,106240.0,0.60987819]
[1737317229575,0.05110037,106250.0,106240.0,0.24907819]
[1737317229878,0.09820837,106250.0,106240.0,0.22513674]
[1737317230072,0.4591035,106250.0,106240.0,0.17213421]
[1737317230972,0.4591035,106250.0,106240.0,0.16027036]
[1737317232174,0.4591035,106250.0,106240.0,0.15752235]
[1737317232378,0.4591035,106250.0,106230.0,0.01432827]
[1737317232578,0.047117,106230.0,106220.0,0.42223105]
[1737317232769,0.09821737,106230.0,106220.0,0.42223105]
[1737317232974,0.09821737,106230.0,106220.0,0.43451475]
[1737317233772,0.047117,106230.0,106220.0,0.4202027]
[1737317233979,0.09821737,106230.0,106220.0,0.4202027]
[1737317234377,0.45901737,106230.0,106220.0,0.0122837]
[1737317234577,0.45901737,106230.0,106210.0,1.11319505]
[1737317234780,0.09831952,106220.0,106210.0,1.11319505]
[1737317234976,0.09831952,106220.0,106210.0,1.11790957]
[1737317235173,0.09831952,106220.0,106210.0,1.07078657]
[1737317235475,0.45911952,106220.0,106210.0,0.41767784]
[1737317235878,0.45911952,106220.0,106210.0,0.42977239]
[1737317236174,0.45911952,106220.0,106210.0,0.41546034]
[1737317236481,0.51012174,106220.0,106210.0,0.01227295]
[1737317236682,0.047125,106210.0,106200.0,0.10010728]
[1737317236876,0.45912352,106210.0,106200.0,0.10010728]
[1737317237277,0.45912352,106210.0,106200.0,0.08227235]
[1737317238278,0.51022389,106210.0,106200.0,0.08227235]
[1737317238783,0.45912352,106210.0,106200.0,0.08227235]
[1737317238975,0.45902537,106210.0,106200.0,0.08227235]
[1737317239174,0.45912352,106210.0,106200.0,0.08227235]
[1737317239376,0.45912352,106210.0,106200.0,0.05305791]
[1737317239876,0.45912352,106210.0,106200.0,0.05600544]
[1737317240580,0.45902537,106210.0,106200.0,0.05305791]
[1737317240772,0.45912352,106210.0,106200.0,0.05305791]
[1737317241976,0.45912352,106210.0,106200.0,0.05600544]
[1737317242174,0.45912352,106210.0,106200.0,0.05600538]
[1737317242379,0.40802315,106210.0,106200.0,0.10313538]
[1737317242577,0.40802315,106210.0,106200.0,0.10785095]
[1737317242578,0.45912352,106210.0,106200.0,0.10785095]
[1737317242784,0.51022389,106210.0,106200.0,0.06072095]
[1737317243086,0.51022389,106210.0,106200.0,0.094318]
[1737317243274,0.45912352,106210.0,106200.0,0.094318]
[1737317243686,0.45912352,106210.0,106200.0,0.05600538]
[1737317243884,0.45912352,106210.0,106200.0,0.06072102]
[1737317244287,0.09832352,106210.0,106200.0,0.06072102]
[1737317244481,0.45912352,106210.0,106200.0,0.06072102]
[1737317247387,0.45912352,106210.0,106200.0,0.06661559]
[1737317247886,0.51022389,106210.0,106200.0,0.06072102]
[1737317248585,0.51022389,106210.0,106200.0,0.06072144]
[1737317249890,0.51022389,106210.0,106200.0,0.06072154]
[1737317250190,0.52195599,106210.0,106200.0,0.06661665]
[1737317250395,0.52195599,106210.0,106200.0,0.06072154]
[1737317251283,0.47085562,106210.0,106200.0,0.06661665]
[1737317251479,0.52195599,106210.0,106200.0,0.06661665]
[1737317251690,0.52195599,106210.0,106200.0,0.06661668]
[1737317251691,0.52185784,106210.0,106200.0,0.06661668]
[1737317251990,0.73245784,106210.0,106200.0,0.06661668]
[1737317252885,0.89125784,106210.0,106200.0,0.06661668]
[1737317253292,0.89125784,106210.0,106190.0,0.00047411]
[1737317253490,0.047134,106190.0,106180.0,0.01431205]
[1737317253793,0.45903437,106190.0,106180.0,0.01431205]
[1737317254180,0.047143,106170.0,106160.0,0.02736428]
[1737317254390,0.09831116,106170.0,106160.0,0.05640012]
[1737317254689,0.09831116,106170.0,106160.0,0.16547749]
[1737317254897,6.779e-05,106170.0,106160.0,0.57737786]
[1737317255190,0.407937,106190.0,106170.0,0.047141]
[1737317255392,0.407937,106190.0,106180.0,0.453039]
[1737317255689,0.45903737,106190.0,106180.0,0.4059]
[1737317256192,0.45913537,106190.0,106180.0,0.4059]
[1737317256779,0.45913537,106190.0,106180.0,0.194]
[1737317257588,0.047143,106170.0,106160.0,0.02982817]
[1737317257783,0.07701848,106170.0,106160.0,0.31476653]
[1737317257991,0.07701848,106170.0,106160.0,0.30592283]
[1737317258190,0.07701848,106170.0,106160.0,0.51482283]
[1737317259582,0.07701848,106170.0,106160.0,0.52921417]
[1737317261284,0.07701848,106170.0,106160.0,0.499386]
[1737317261480,0.00010277,106170.0,106160.0,0.59763437]
[1737317261689,0.41190037,106190.0,106170.0,0.047141]
[1737317261982,0.41190037,106190.0,106170.0,0.05598515]
[1737317261983,0.09824037,106180.0,106170.0,0.05598515]
[1737317262183,0.09824037,106180.0,106170.0,0.03748331]
[1737317262585,0.04714,106180.0,106170.0,0.13146931]
[1737317263394,0.04714,106180.0,106170.0,0.090198]
[1737317263589,0.40793,106200.0,106170.0,0.51565797]
[1737317263590,0.3608,106200.0,106170.0,0.51565797]
[1737317263894,0.09823637,106190.0,106180.0,0.047136]
[1737317264093,0.09823637,106190.0,106180.0,0.05185209]
[1737317264497,0.09823637,106190.0,106180.0,0.13144079]
[1737317264694,0.09823637,106190.0,106180.0,0.77692692]
[1737317264890,0.047136,106190.0,106180.0,0.77692692]
[1737317265193,0.047131,106200.0,106190.0,0.047134]
[1737317265391,0.09823137,106200.0,106190.0,0.05479714]
[1737317265594,0.09823137,106200.0,106190.0,0.13438584]
[1737317266895,0.09823137,106200.0,106190.0,0.29122049]
[1737317267599,0.047131,106200.0,106190.0,0.85035649]
[1737317267994,0.09823137,106200.0,106190.0,0.85035649]
[1737317268590,0.09823137,106200.0,106190.0,0.8916183]
[1737317269500,0.09823137,106200.0,106190.0,0.90635472]
[1737317269996,0.09823137,106200.0,106190.0,0.66112072]
[1737317270189,0.09823137,106200.0,106190.0,0.65227887]
[1737317270593,0.09823137,106200.0,106190.0,0.61101706]
[1737317271399,0.09823137,106200.0,106190.0,0.61101698]
[1737317272001,0.09823137,106200.0,106190.0,0.60572391]
[1737317272304,0.45903137,106200.0,106190.0,0.60572391]
[1737317272508,0.047131,106200.0,106190.0,0.60572391]
[1737317272693,0.09823137,106200.0,106190.0,0.60572406]
[1737317273000,0.45903137,106200.0,106190.0,0.60572406]
[1737317273199,0.45903137,106200.0,106190.0,0.60616847]
[1737317273200,0.51013174,106200.0,106190.0,0.60616847]
[1737317273398,0.51013174,106200.0,106190.0,0.60572406]
[1737317273794,0.51013174,106200.0,106190.0,0.57269378]
[1737317274605,0.51013174,106200.0,106190.0,0.01355875]
[1737317275398,0.45903137,106200.0,106190.0,0.01355875]
[1737317275696,0.09823137,106200.0,106190.0,0.0140033]
[1737317276291,0.45903137,106200.0,106190.0,0.0140033]
[1737317276498,0.09823137,106200.0,106190.0,0.0140033]
[1737317276700,0.09823137,106200.0,106190.0,0.06069275]
[1737317277198,0.09823137,106200.0,106190.0,0.08471615]
[1737317277504,0.45903137,106200.0,106190.0,0.08471615]
[1737317277703,0.45903137,106200.0,106190.0,0.08427159]
[1737317277903,0.09823137,106200.0,106190.0,0.08471615]
[1737317278104,0.09823137,106200.0,106190.0,0.08427159]
[1737317278313,0.09823137,106200.0,106190.0,0.03713759]
[1737317278314,0.51013174,106200.0,106190.0,0.03713759]
[1737317278507,0.51013174,106200.0,106190.0,0.03713679]
[1737317278800,0.51013174,106200.0,106190.0,0.03759699]
[1737317279002,0.51013174,106200.0,106190.0,0.03759773]
[1737317279203,0.51013174,106200.0,106190.0,0.01401889]
[1737317279405,0.45903137,106200.0,106190.0,0.01355847]
[1737317279600,0.51013174,106200.0,106190.0,0.01401889]
[1737317280498,0.40793,106200.0,106190.0,0.01355852]
[1737317280698,0.45903037,106200.0,106180.0,0.57211656]
[1737317280901,0.05110037,106190.0,106180.0,0.52497856]
[1737317281505,0.09823437,106190.0,106180.0,0.52497856]
[1737317281903,0.09823437,106190.0,106180.0,0.81755482]
[1737317282213,0.09823437,106190.0,106180.0,0.82567862]
[1737317282699,0.09823437,106190.0,106180.0,0.81165985]
[1737317282898,0.09823437,106190.0,106180.0,0.82227073]
[1737317283113,0.09823437,106190.0,106180.0,0.82567852]
[1737317283404,0.09823437,106190.0,106180.0,1.21972394]
[1737317283808,0.09823437,106190.0,106180.0,1.42702394]
[1737317284501,0.09823437,106190.0,106180.0,1.4134656]
[1737317284712,0.09823437,106190.0,106180.0,1.42702414]
[1737317285604,0.09823437,106190.0,106180.0,1.46534178]
[1737317287209,0.09823437,106190.0,106180.0,1.46460005]
[1737317287408,0.09823437,106190.0,106180.0,1.12314714]
[1737317290116,0.09823437,106190.0,106180.0,1.46489954]
[1737317291408,0.09823437,106190.0,106180.0,1.26364127]
[1737317291600,0.09823437,106190.0,106180.0,1.26364129]
[1737317292412,0.09823437,106190.0,106180.0,1.27809326]
[1737317293311,0.09823437,106190.0,106180.0,0.93474489]
[1737317293513,0.09823437,106190.0,106180.0,0.89642723]
[1737317293810,0.09823437,106190.0,106180.0,0.93474487]
[1737317294210,0.407931,106200.0,106190.0,0.047134]
[1737317294416,0.2531407,106220.0,106210.0,0.047125]
[1737317294605,0.2531407,106220.0,106210.0,0.47258389]
[1737317294818,0.2531407,106220.0,106210.0,0.48778278]
[1737317295101,0.2531407,106220.0,106210.0,0.69048278]
[1737317295310,0.3002617,106220.0,106210.0,0.63938241]
[1737317295912,0.047121,106220.0,106210.0,1.2678161]
[1737317296308,0.047121,106220.0,106210.0,1.26735476]
[1737317296606,0.047121,106220.0,106210.0,1.2678161]
[1737317297013,0.45901537,106240.0,106210.0,1.31891647]
[1737317297215,0.04712,106230.0,106220.0,0.04712]
[1737317297513,0.04712,106230.0,106220.0,0.06067369]
[1737317297705,0.09822037,106230.0,106220.0,0.07541124]
[1737317297907,0.09822037,106230.0,106220.0,0.07541101]
[1737317298617,0.04712,106230.0,106220.0,0.07541101]
[1737317298817,0.40792,106230.0,106220.0,0.46282095]
[1737317299123,0.04712,106230.0,106220.0,0.46282095]
[1737317299321,0.04712,106230.0,106220.0,0.82362095]
[1737317299706,0.40792,106230.0,106220.0,0.45692814]
[1737317299911,0.09822037,106230.0,106220.0,0.46282108]
[1737317300316,0.09822037,106230.0,106220.0,0.45692814]
[1737317300906,0.09822037,106230.0,106220.0,0.82362093]
[1737317301417,0.09822037,106230.0,106220.0,0.81772814]
[1737317301711,0.41190037,106240.0,106230.0,0.047117]
[1737317301908,0.05110037,106240.0,106230.0,0.82607765]
[1737317302108,0.05110037,106240.0,106230.0,0.83197017]
[1737317302314,0.05110037,106240.0,106230.0,0.8408152]
[1737317302514,0.05110037,106240.0,106230.0,0.8467076]
[1737317302720,0.05110037,106240.0,106230.0,0.8408152]
[1737317302919,0.05110037,106240.0,106230.0,0.4800152]
[1737317303419,0.05110037,106240.0,106230.0,0.86742514]
[1737317303613,0.09821237,106240.0,106230.0,0.86742514]
[1737317304013,0.41190037,106250.0,106230.0,0.86742514]
[1737317304219,0.407908,106250.0,106240.0,0.254912]
[1737317304514,0.407908,106250.0,106240.0,0.2578584]
[1737317304515,0.45900837,106250.0,106240.0,0.2578584]
[1737317304906,0.45900837,106250.0,106240.0,0.27259595]
[1737317305310,0.45900837,106250.0,106240.0,0.26964955]
[1737317305512,0.45900837,106250.0,106240.0,0.43568238]
[1737317305818,0.45900837,106250.0,106240.0,0.43862835]
[1737317307113,0.45900837,106250.0,106240.0,0.43862834]
[1737317308809,0.45900837,106250.0,106240.0,0.43568238]
[1737317309831,0.45900837,106250.0,106240.0,0.43862837]
[1737317310631,0.66990437,106260.0,106250.0,0.047103]
[1737317310632,0.047104,106260.0,106250.0,0.047103]
[1737317310834,0.0471,106270.0,106260.0,0.047103]
[1737317311128,0.09819537,106280.0,106270.0,0.047099]
[1737317311334,0.09819537,106280.0,106270.0,0.8517571]
[1737317311529,0.45899537,106280.0,106270.0,0.8517571]
[1737317312033,0.45899537,106280.0,106270.0,0.84704487]
[1737317312425,0.45899537,106280.0,106270.0,0.79994587]
[1737317312628,0.45899537,106280.0,106270.0,0.38053817]
[1737317312929,0.45899537,106280.0,106270.0,0.16823755]
[1737317313326,0.45899537,106280.0,106270.0,0.1652923]
[1737317313726,0.67509537,106280.0,106260.0,0.258303]
[1737317313930,0.45899937,106270.0,106260.0,0.26124853]
[1737317314430,0.45899937,106270.0,106260.0,0.00294553]
[1737317314628,0.51009974,106270.0,106260.0,0.00294553]
[1737317314929,0.047103,106260.0,106250.0,0.2123]
[1737317315126,0.72610374,106260.0,106250.0,0.2123]
[1737317316829,0.047108,106250.0,106240.0,0.41111175]
[1737317317030,0.45900837,106250.0,106240.0,0.41111175]
[1737317317426,0.45900837,106250.0,106240.0,0.00612551]
[1737317317639,0.047112,106240.0,106230.0,0.2014]
[1737317317832,0.047117,106230.0,106220.0,0.79408203]
[1737317318133,0.047117,106230.0,106220.0,0.7987962]
[1737317318134,0.09821737,106230.0,106220.0,0.7987962]
[1737317318834,0.09821737,106230.0,106220.0,0.83710013]
[1737317319138,0.45901737,106230.0,106220.0,0.83710013]
[1737317319337,0.45901737,106230.0,106220.0,0.4084]
[1737317320332,0.45901737,106230.0,106220.0,0.3908778]
[1737317321437,0.047121,106220.0,106210.0,0.61403998]
[1737317321629,0.45902137,106220.0,106210.0,0.6187548]
[1737317321833,0.09822137,106220.0,106210.0,0.6187548]
[1737317322030,0.45902137,106220.0,106210.0,0.65706314]
[1737317322438,0.45902137,106220.0,106210.0,0.64270519]
[1737317322636,0.45902137,106220.0,106210.0,0.59968203]
[1737317323235,0.45902137,106220.0,106210.0,0.3792923]
[1737317323426,0.45902137,106220.0,106210.0,0.1652923]
[1737317324535,0.047125,106210.0,106200.0,0.38719426]
[1737317324731,0.45902537,106210.0,106200.0,0.38719426]
[1737317325335,0.45902537,106210.0,106200.0,0.38578197]
[1737317325638,0.51012574,106210.0,106200.0,0.38578197]
[1737317326243,0.51012574,106210.0,106200.0,0.16539224]
[1737317326439,0.45902537,106210.0,106200.0,0.16539224]
[1737317326841,0.45902537,106210.0,106200.0,0.1683397]
[1737317327434,0.45902537,106210.0,106200.0,0.0030474]
[1737317327832,0.047125,106210.0,106200.0,0.05017726]
[1737317328043,0.047125,106210.0,106200.0,0.05489265]
[1737317328239,0.047125,106210.0,106200.0,0.05489208]
[1737317328436,0.047125,106210.0,106200.0,0.09320348]
[1737317328636,0.047125,106210.0,106200.0,0.31948716]
[1737317328829,0.09822537,106210.0,106200.0,0.48477946]
[1737317329438,0.09822537,106210.0,106200.0,0.47888551]
[1737317329832,0.09822537,106210.0,106200.0,0.49339122]
[1737317330040,0.45902537,106210.0,106200.0,0.49339122]
[1737317330247,0.09822537,106210.0,106200.0,0.89600208]
[1737317332044,0.09822537,106210.0,106200.0,0.90189597]
[1737317332240,0.09822537,106210.0,106200.0,0.90189574]
[1737317332643,0.05110037,106220.0,106200.0,1.26269574]
[1737317332949,0.407921,106220.0,106210.0,0.1954]
[1737317333142,0.407921,106220.0,106210.0,0.24137345]
[1737317333736,0.407921,106220.0,106210.0,0.40697951]
[1737317333941,0.407921,106220.0,106210.0,0.44644246]
[1737317334248,0.407921,106220.0,106210.0,0.4541043]
[1737317334853,0.407921,106220.0,106210.0,0.4157929]
[1737317335050,0.45902137,106220.0,106210.0,0.4157929]
[1737317336147,0.45902137,106220.0,106210.0,0.45410247]
[1737317336745,0.45901937,106230.0,106220.0,0.047121]
[1737317336945,0.45901937,106230.0,106220.0,0.47456786]
[1737317337446,0.407912,106240.0,106230.0,0.047117]
[1737317337447,0.45901237,106240.0,106230.0,0.047117]
[1737317337644,0.407912,106240.0,106230.0,0.05477807]
[1737317337850,0.407912,106240.0,106230.0,0.05477723]
[1737317338048,0.3608,106240.0,106230.0,0.09308135]
[1737317338353,0.45901137,106250.0,106240.0,0.047112]
[1737317338549,0.45901137,106250.0,106240.0,0.25917223]
[1737317339647,0.45901137,106250.0,106240.0,0.42477829]
[1737317339843,0.45901137,106250.0,106240.0,0.42477786]
[1737317340047,0.45901137,106250.0,106240.0,0.45836316]
[1737317340752,0.45901137,106250.0,106240.0,0.46307685]
[1737317341747,0.3608,106250.0,106240.0,0.46307685]
[1737317341947,0.09820637,106260.0,106250.0,0.047108]
[1737317342147,0.09820637,106260.0,106250.0,0.47716777]
[1737317342348,0.45900337,106270.0,106260.0,0.047103]
[1737317342554,0.45900337,106270.0,106260.0,0.05476277]
[1737317342949,0.45900337,106270.0,106260.0,0.05476136]
[1737317343952,0.407903,106270.0,106260.0,0.23509488]
[1737317344160,0.047103,106270.0,106260.0,0.59589488]
[1737317344363,0.45899637,106280.0,106270.0,0.047099]
[1737317344656,0.45899637,106280.0,106270.0,0.25635736]
[1737317344854,0.09819637,106280.0,106270.0,0.61715736]
[1737317345056,0.718687,106300.0,106270.0,0.61715736]
[1737317345057,0.047093,106290.0,106280.0,0.047093]
[1737317345359,0.51009374,106290.0,106280.0,0.00765672]
[1737317345660,0.70909374,106290.0,106260.0,0.63098973]
[1737317345853,0.45899937,106270.0,106260.0,0.65337526]
[1737317346460,0.45899937,106270.0,106260.0,0.63393519]
[1737317346765,0.45899937,106270.0,106260.0,0.41825836]
[1737317346950,0.45899937,106270.0,106260.0,0.41354546]
[1737317347153,0.45899937,106270.0,106260.0,0.41825833]
[1737317347963,0.45899937,106270.0,106260.0,0.58354285]
[1737317348752,0.45899937,106270.0,106260.0,0.57588452]
[1737317348957,0.45899937,106270.0,106260.0,0.58354319]
[1737317349258,0.45899937,106270.0,106260.0,0.57883016]
[1737317349964,0.45899937,106270.0,106260.0,0.58354318]
[1737317350166,0.45899937,106270.0,106260.0,0.57883016]
[1737317350365,0.45899937,106270.0,106260.0,0.4182584]
[1737317350671,0.45899937,106270.0,106260.0,0.45183899]
[1737317351077,0.45899937,106270.0,106260.0,0.41354564]
[1737317353963,0.45899937,106270.0,106260.0,0.20224564]
[1737317354273,0.047108,106250.0,106240.0,0.64099801]
[1737317354573,0.45900837,106250.0,106240.0,0.88330605]
[1737317354771,0.81980837,106250.0,106240.0,0.42538061]
[1737317354965,1.03050837,106250.0,106240.0,0.42396885]
[1737317355169,1.03050837,106250.0,106240.0,0.38567425]
[1737317355476,0.047112,106240.0,106230.0,0.27548717]
[1737317355680,0.047117,106230.0,106220.0,0.3856999]
[1737317355875,0.45901737,106230.0,106220.0,0.3904146]
[1737317356070,0.45901737,106230.0,106220.0,0.3856999]
[1737317356267,0.45901737,106230.0,106220.0,0.38196164]
[1737317356871,0.407917,106230.0,106220.0,0.38196164]
[1737317357074,0.407917,106230.0,106220.0,0.00471479]
[1737317357467,0.3608,106230.0,106220.0,0.10293616]
[1737317357673,0.407913,106240.0,106230.0,0.047117]
[1737317357871,0.768713,106240.0,106230.0,0.44813179]
[1737317358071,0.047113,106240.0,106230.0,0.70293216]
[1737317358275,0.407913,106240.0,106230.0,0.70293216]
[1737317358475,0.047113,106240.0,106230.0,0.70293216]
[1737317358678,0.407913,106240.0,106230.0,0.74123344]
[1737317359070,0.407913,106240.0,106230.0,0.74123259]
[1737317359580,0.407913,106240.0,106230.0,0.69013222]
[1737317360078,0.3608,106240.0,106230.0,0.74123259]
[1737317360582,0.40791,106250.0,106240.0,0.047112]
[1737317360774,0.40791,106250.0,106240.0,0.05182594]
[1737317362376,0.45901037,106250.0,106240.0,0.05182594]
[1737317364774,0.45901037,106250.0,106240.0,0.00471394]
[1737317364977,0.45901037,106250.0,106230.0,0.47918717]
[1737317365276,0.66651237,106240.0,106230.0,0.28020115]
[1737317365479,0.047117,106230.0,106220.0,0.27548717]
[1737317365681,0.45901737,106230.0,106220.0,0.28020185]
[1737317366275,0.45901737,106230.0,106220.0,0.28314858]
[1737317366478,0.45901737,106230.0,106220.0,0.00766141]
[1737317366778,0.047121,106220.0,106210.0,0.67412139]
[1737317367074,0.45902137,106220.0,106210.0,0.68767679]
[1737317367480,0.45902137,106220.0,106210.0,0.72598439]
[1737317368076,0.45902137,106220.0,106210.0,0.72598396]
[1737317368274,0.45902137,106220.0,106210.0,0.72009049]
[1737317368475,0.407921,106220.0,106210.0,0.72009049]
[1737317368782,0.45902137,106220.0,106210.0,0.72598398]
[1737317368970,0.45902137,106220.0,106210.0,0.72009049]
[1737317369369,0.45902137,106220.0,106210.0,0.67296549]
[1737317369785,0.45902137,106220.0,106210.0,0.6585691]
[1737317369978,0.45902137,106220.0,106210.0,0.65856921]
[1737317370281,0.45902137,106220.0,106210.0,0.66446282]
[1737317370588,0.407921,106220.0,106210.0,0.66446282]
[1737317370784,0.45902137,106220.0,106210.0,0.66446282]
[1737317372081,0.09822137,106220.0,106210.0,0.66446282]
[1737317372284,0.047121,106220.0,106210.0,0.71158782]
[1737317372472,0.047121,106220.0,106210.0,1.07238782]
[1737317373587,0.047121,106220.0,106210.0,1.62577205]
[1737317373881,0.09822137,106220.0,106210.0,1.21784705]
[1737317374083,0.45902137,106220.0,106210.0,1.21784705]
[1737317374385,0.09822137,106220.0,106210.0,1.21784705]
[1737317374580,0.09822137,106220.0,106210.0,0.66446282]
[1737317374885,0.45902137,106220.0,106210.0,0.66446282]
[1737317375579,0.45902137,106220.0,106210.0,0.44826934]
[1737317375784,0.45902137,106220.0,106210.0,0.40996174]
[1737317375985,0.51012174,106220.0,106210.0,0.06676993]
[1737317376182,0.047125,106210.0,106200.0,0.33068454]
[1737317376385,0.71602574,106210.0,106200.0,0.33068454]
[1737317376701,0.66492537,106210.0,106200.0,0.33068454]
[1737317377787,0.04713,106200.0,106190.0,0.047133]
[1737317377984,0.45903037,106200.0,106180.0,0.79399591]
[1737317378184,0.45903037,106200.0,106180.0,0.79989075]
[1737317378393,0.45903037,106200.0,106190.0,0.047133]
[1737317379388,0.45903037,106200.0,106190.0,0.09984524]
[1737317380093,0.45903037,106200.0,106190.0,0.03831633]
[1737317380285,0.45903037,106200.0,106190.0,0.08544933]
[1737317380793,0.45903037,106200.0,106190.0,0.09984524]
[1737317380989,0.45903037,106200.0,106190.0,0.05271224]
[1737317381194,0.51013074,106200.0,106190.0,0.05271224]
[1737317381391,0.51013074,106200.0,106190.0,0.03831633]
[1737317382390,0.510253,106200.0,106190.0,0.03831633]
[1737317382587,0.728153,106200.0,106190.0,0.03831633]
[1737317382794,0.728153,106200.0,106180.0,0.43319591]
[1737317382993,0.45903437,106190.0,106180.0,0.43319591]
[1737317383296,0.45903437,106190.0,106180.0,0.50099285]
[1737317384198,0.45903437,106190.0,106180.0,0.4188]
[1737317386091,0.45903437,106190.0,106180.0,0.42351642]
[1737317387196,0.45903437,106190.0,106180.0,0.47065542]
[1737317387995,0.45903437,106190.0,106180.0,0.47360314]
[1737317388895,0.45903437,106190.0,106180.0,0.42656308]
[1737317389297,0.45903437,106190.0,106180.0,0.46488341]
[1737317389589,0.45903437,106190.0,106180.0,0.46488332]
[1737317390406,0.45903437,106190.0,106180.0,0.46511143]
[1737317390702,0.407934,106190.0,106180.0,0.46511143]
[1737317390904,0.407934,106190.0,106180.0,0.47950733]
[1737317391106,0.407934,106190.0,106180.0,0.48540273]
[1737317391403,0.047134,106190.0,106180.0,0.48540273]
[1737317392796,0.047134,106190.0,106180.0,0.48540156]
[1737317393005,0.09823437,106190.0,106180.0,0.48540156]
[1737317393205,0.45903437,106190.0,106180.0,0.43826256]
[1737317393396,0.45903437,106190.0,106180.0,0.43236766]
[1737317393907,0.45903437,106190.0,106180.0,0.00789148]
[1737317394102,0.66153437,106190.0,106180.0,0.00789148]
[1737317394408,0.047139,106180.0,106170.0,0.01439591]
[1737317394706,0.047143,106170.0,106160.0,0.42999591]
[1737317394906,0.09824337,106170.0,106160.0,0.43589243]
[1737317395100,0.36087446,106180.0,106160.0,0.43589243]
[1737317395303,0.66272637,106210.0,106170.0,0.45904337]
[1737317395500,0.04713,106200.0,106190.0,0.047132]
[1737317395696,0.04713,106200.0,106190.0,0.26082837]
[1737317395891,0.09823037,106200.0,106190.0,0.26082837]
[1737317396108,0.09823037,106200.0,106190.0,0.31355112]
[1737317396312,0.04719035,106200.0,106190.0,0.31355112]
[1737317396613,0.04719035,106200.0,106190.0,0.3135493]
[1737317397213,0.04719035,106200.0,106190.0,0.31354924]
[1737317397403,0.04719035,106200.0,106190.0,0.31400248]
[1737317397600,0.407928,106210.0,106200.0,0.04713]
[1737317397808,0.45902837,106210.0,106200.0,0.05302449]
[1737317398413,0.45902837,106210.0,106200.0,0.25332449]
[1737317398613,0.45902837,106210.0,106200.0,0.25332436]
[1737317399415,0.45902837,106210.0,106200.0,0.20619436]
[1737317401315,0.04713,106200.0,106190.0,0.2078]
[1737317401616,0.45903037,106200.0,106190.0,0.21369516]
[1737317402410,0.51013074,106200.0,106180.0,0.7542449]
[1737317402610,0.45903437,106190.0,106180.0,0.76014028]
[1737317403014,0.45903437,106190.0,106180.0,0.74571796]
[1737317403616,0.45903437,106190.0,106180.0,0.74571814]
[1737317403813,0.45903437,106190.0,106180.0,0.54001814]
[1737317404218,0.45903437,106190.0,106180.0,0.20809556]
[1737317404416,0.45903437,106190.0,106180.0,0.21281226]
[1737317405112,0.45903437,106190.0,106180.0,0.21281219]
[1737317405313,0.45903437,106190.0,106180.0,0.16577213]
[1737317405518,0.45903437,106190.0,106180.0,0.15515994]
[1737317405724,0.45903437,106190.0,106180.0,0.16577206]
[1737317406517,0.45903437,106190.0,106180.0,0.16871999]
[1737317407520,0.45903437,106190.0,106180.0,0.16872044]
[1737317408115,0.45903437,106190.0,106180.0,0.00766463]